fUSD/lending_fUSD_20250616
["ID","MTS","AMOUNT","RATE_DAILY","PERIOD"]
[366203314,1750116645534,-490.0,0.00016396,2]
[366203315,1750116645544,-490.0,0.00016396,2]
[366203316,1750116645554,-559.14,0.00016396,2]
[366203317,1750116645566,-490.0,0.00016396,2]
[366203318,1750116645575,-490.0,0.00016396,2]
[366203319,1750116645586,-503.2,0.00016396,2]
[366203320,1750116645596,-490.0,0.00016396,2]
[366203321,1750116645606,-563.94,0.00016396,2]
[366203322,1750116645616,-490.0,0.00016396,2]
[366203323,1750116645625,-490.0,0.00016396,2]
[366203324,1750116645635,-512.44,0.00016396,2]
[366203325,1750116645645,-490.0,0.00016396,2]
[366203326,1750116645655,-490.0,0.00016396,2]
[366203327,1750116645664,-490.0,0.00016396,2]
[366203328,1750116645674,-490.0,0.00016396,2]
[366203329,1750116645685,-160.94112459,0.00016396,2]
[366203330,1750116645695,-500.98,0.00016396,2]
[366203331,1750116645704,-150.0,0.00016404,2]
[366203332,1750116645714,-451.96907282,0.00016405,2]
[366203333,1750116645723,-1037.66165915,0.00016405,2]
[366203334,1750116645734,-4110.84393674,0.00016407,2]
[366203335,1750116645743,-15251.61205077,0.00016407,2]
[366203337,1750116646087,-56397.55104381,0.00016407,2]
[366203338,1750116646100,-1252.71985348,0.00016407,2]
[366203351,1750116646231,-4229.03083822,0.00016407,2]
[366203353,1750116646242,-539.55,0.00016407,2]
[366203354,1750116646524,-370.94221505,0.00016219,2]
[366203355,1750116646550,-119.05778495,0.00016219,2]
[366203356,1750116646559,-452.36304505,0.00016243,2]
[366203357,1750116646572,-37.63695495,0.00016243,2]
[366203358,1750116646582,-304.63411671,0.00016384,2]
[366203398,1750116647267,-490.0,0.00016219,2]
[366203400,1750116647276,-490.0,0.00016219,2]
[366203402,1750116647286,-490.0,0.00016219,2]
[366203404,1750116647295,-298.38533011,0.00016219,2]
[366203553,1750116771723,500.0,0.00015068,2]
[366203556,1750116813586,150.0,0.0001549,5]
[366203557,1750116828734,367.52,0.00013699,2]
[366203559,1750116921176,1000.0,0.00015261,2]
[366203560,1750117016190,661.96,0.00015216,2]
[366203561,1750117020644,740.36,0.00015216,2]
[366203562,1750117270723,150.0,0.00023,120]
[366203565,1750117468171,666.0,0.00015155,2]
[366203575,1750117572187,385.0,0.00015086,2]
[366203576,1750117610874,362.19,0.00015154,2]
[366203577,1750117611473,250.0,0.00015,2]
[366203588,1750117832421,-165.34,0.0001551,2]
[366203589,1750117832432,-600.0,0.00015525,4]
[366203590,1750117832444,-224.91155404,0.0001554,2]
[366203591,1750117832594,-160.08844596,0.0001554,2]
[366203592,1750117832604,-125.62929273,0.00015576,2]
[366203593,1750117832616,-124.37070727,0.00015576,2]
[366203594,1750117832627,-165.71,0.00015642,2]
[366203595,1750117832637,-169.94,0.00015703,2]
[366203596,1750117832646,-151.0,0.00015711,2]
[366203597,1750117832656,-287.21230126,0.00015896,2]
[366203598,1750117832666,-351.35061051,0.00015916,2]
[366203599,1750117832678,-517.13615142,0.00015916,2]
[366203600,1750117832688,-207.4,0.0001599,2]
[366203601,1750117832698,-385.0,0.00015993,3]
[366203602,1750117832708,-156.462545,0.00015996,2]
[366203603,1750117832718,-169.405048,0.00015996,2]
[366203604,1750117832727,-300.0,0.00015997,2]
[366203605,1750117832737,-1200.0,0.00015997,2]
[366203606,1750117832747,-156.462545,0.00015998,2]
[366203607,1750117832756,-169.405048,0.00015998,2]
[366203608,1750117832766,-300.0,0.00015998,2]
[366203609,1750117832775,-1000.0,0.00015999,2]
[366203610,1750117832785,-156.462545,0.00015999,2]
[366203611,1750117832794,-169.405048,0.00015999,2]
[366203612,1750117832803,-135.86642512,0.00015999,2]
[366203613,1750117832816,-64.13357488,0.00015999,2]
[366203614,1750117832826,-962.04385433,0.00016,2]
[366203615,1750117832838,-994.82614567,0.00016,2]
[366203616,1750117832847,-1956.87,0.00016,2]
[366203617,1750117832857,-1956.87,0.00016,2]
[366203618,1750117832867,-1956.87,0.00016,2]
[366203619,1750117832877,-1956.87,0.00016,2]
[366203620,1750117832886,-14.17402522,0.00016,2]
[366203621,1750117832906,-3416.13597478,0.00016,2]
[366203622,1750117832916,-499.99,0.00016,2]
[366203623,1750117832926,-999.99,0.00016,2]
[366203624,1750117832935,-4685.25,0.00016,2]
[366203625,1750117832944,-299.99,0.00016,2]
[366203626,1750117832954,-2181.99,0.00016,2]
[366203627,1750117832963,-298.94,0.00016,2]
[366203628,1750117832973,-150.99,0.00016,2]
[366203629,1750117832984,-3561.48,0.00016,2]
[366203630,1750117832995,-150.99,0.00016,2]
[366203631,1750117833006,-663.4,0.00016,2]
[366203632,1750117833016,-216.08,0.00016,2]
[366203634,1750117833025,-1549.35,0.00016,2]
[366203636,1750117833035,-1414.85,0.00016,2]
[366203638,1750117833044,-1133.25666202,0.00016,2]
[366203650,1750117833173,-1734.60333798,0.00016,2]
[366203652,1750117833183,-5560.62,0.00016,2]
[366203654,1750117833194,-1164.67,0.00016053,2]
[366203656,1750117833204,-1164.67,0.00016053,2]
[366203657,1750117833213,-169.405048,0.00016056,2]
[366203660,1750117833223,-500.0,0.00016082,2]
[366203662,1750117833233,-1517.89,0.000161,2]
[366203664,1750117833243,-1318.0,0.000161,2]
[366203666,1750117833253,-666.52062827,0.000161,2]
[366203668,1750117833263,-666.52062827,0.000161,2]
[366203669,1750117833273,-666.52062827,0.000161,2]
[366203671,1750117833282,-666.52062827,0.000161,2]
[366203673,1750117833291,-666.52062827,0.000161,2]
[366203675,1750117833301,-666.52062827,0.000161,2]
[366203676,1750117833310,-666.52062827,0.00016107,2]
[366203677,1750117833319,-152.0,0.00016115,3]
[366203679,1750117833329,-4967.96,0.00016116,2]
[366203681,1750117833338,-151.0,0.00016133,2]
[366203682,1750117833349,-666.52062827,0.00016141,2]
[366203684,1750117833359,-2204.81167812,0.00016142,2]
[366203686,1750117833368,-156.55935743,0.00016142,2]
[366203687,1750117833378,-10368.71027232,0.00016143,2]
[366203689,1750117833391,-2791.6271114,0.00016143,2]
[366203691,1750117833403,-1693.6999999,0.00016143,2]
[366203693,1750117833417,-6740.78127798,0.00016143,2]
[366203697,1750117833458,-5372.367,0.00016143,2]
[366203699,1750117833471,-450.0,0.00016143,2]
[366203701,1750117833484,-7590.0757384,0.00016143,2]
[366203703,1750117833496,-156.462545,0.00016158,2]
[366203704,1750117833507,-169.405048,0.00016158,2]
[366203706,1750117833519,-156.462545,0.0001616,2]
[366203708,1750117833529,-169.405048,0.0001616,2]
[366203710,1750117833539,-666.52062827,0.00016176,2]
[366203711,1750117833549,-717.29345827,0.0001618,2]
[366203713,1750117833560,-345.5382081,0.00016196,2]
[366203715,1750117833570,-160.94112459,0.00016199,2]
[366203717,1750117833583,-910.16,0.000162,2]
[366203719,1750117833592,-150.0,0.000162,2]
[366203721,1750117833607,-150.0,0.000162,2]
[366203723,1750117833617,-150.0,0.000162,2]
[366203725,1750117833628,-150.0,0.000162,2]
[366203727,1750117833639,-150.0,0.000162,2]
[366203729,1750117833648,-1486.0,0.000162,2]
[366203730,1750117833658,-666.52062827,0.0001621,2]
[366203732,1750117833668,-833.8156298,0.00016218,2]
[366203734,1750117833678,-302.05,0.00016219,2]
[366203736,1750117833689,-490.0,0.00016219,2]
[366203737,1750117833699,-490.58884689,0.00016219,2]
[366203739,1750117833711,-156.462545,0.00016221,2]
[366203741,1750117833721,-169.405048,0.00016221,2]
[366203743,1750117833732,-2204.81167812,0.00016226,2]
[366203744,1750117833741,-490.0,0.00016242,2]
[366203746,1750117833751,-490.0,0.00016242,2]
[366203748,1750117833762,-490.0,0.00016242,2]
[366203750,1750117833772,-490.0,0.00016242,2]
[366203752,1750117833782,-490.0,0.00016242,2]
[366203753,1750117833792,-490.0,0.00016242,2]
[366203755,1750117833802,-490.0,0.00016242,2]
[366203757,1750117833812,-490.0,0.00016242,2]
[366203759,1750117833822,-490.0,0.00016242,2]
[366203760,1750117833832,-490.0,0.00016242,2]
[366203762,1750117833843,-169.97623835,0.00016242,2]
[366203764,1750117833856,-490.0,0.00016242,2]
[366203766,1750117833867,-490.0,0.00016242,2]
[366203768,1750117833877,-490.0,0.00016242,2]
[366203769,1750117833888,-490.0,0.00016242,2]
[366203771,1750117833898,-335.66,0.00016242,2]
[366203773,1750117833908,-196.0,0.00016242,2]
[366203774,1750117833918,-490.0,0.00016242,2]
[366203776,1750117833928,-490.0,0.00016242,2]
[366203778,1750117833939,-542.37,0.00016242,2]
[366203780,1750117833949,-490.0,0.00016242,2]
[366203782,1750117833959,-495.97806796,0.00016242,2]
[366203783,1750117833969,-490.0,0.00016242,2]
[366203785,1750117833979,-490.0,0.00016242,2]
[366203787,1750117833989,-490.0,0.00016242,2]
[366203789,1750117833999,-490.0,0.00016242,2]
[366203791,1750117834010,-490.0,0.00016242,2]
[366203792,1750117834020,-289.77935538,0.00016242,2]
[366203794,1750117834030,-490.0,0.00016242,2]
[366203796,1750117834040,-490.0,0.00016242,2]
[366203798,1750117834049,-490.0,0.00016242,2]
[366203800,1750117834059,-490.0,0.00016242,2]
[366203801,1750117834069,-490.0,0.00016242,2]
[366203803,1750117834079,-490.0,0.00016242,2]
[366203805,1750117834089,-490.0,0.00016242,2]
[366203807,1750117834101,-490.0,0.00016242,2]
[366203809,1750117834111,-452.58,0.00016242,2]
[366203810,1750117834121,-609.1,0.00016242,2]
[366203812,1750117834131,-490.0,0.00016242,2]
[366203814,1750117834141,-490.0,0.00016242,2]
[366203816,1750117834151,-288.69,0.00016242,2]
[366203818,1750117834162,-437.01,0.00016242,2]
[366203819,1750117834172,-390.59,0.00016242,2]
[366203820,1750117834181,-637.69,0.00016242,2]
[366203821,1750117834191,-383.83,0.00016242,2]
[366203822,1750117834201,-490.0,0.00016242,2]
[366203823,1750117834210,-490.0,0.00016242,2]
[366203824,1750117834220,-468.11855516,0.00016242,2]
[366203825,1750117834230,-490.0,0.00016242,2]
[366203826,1750117834240,-509.44,0.00016242,2]
[366203827,1750117834249,-576.67587266,0.00016242,2]
[366203828,1750117834259,-490.0,0.00016242,2]
[366203829,1750117834270,-177.73590228,0.00016242,2]
[366203830,1750117834280,-471.88873159,0.00016242,2]
[366203831,1750117834289,-490.0,0.00016242,2]
[366203832,1750117834298,-490.0,0.00016242,2]
[366203833,1750117834307,-490.0,0.00016242,2]
[366203834,1750117834317,-490.0,0.00016242,2]
[366203835,1750117834326,-490.0,0.00016242,2]
[366203836,1750117834335,-500.0,0.00016242,2]
[366203837,1750117834347,-490.0,0.00016242,2]
[366203838,1750117834356,-490.0,0.00016242,2]
[366203839,1750117834366,-490.0,0.00016242,2]
[366203840,1750117834375,-490.0,0.00016242,2]
[366203841,1750117834385,-490.0,0.00016242,2]
[366203842,1750117834394,-490.0,0.00016242,2]
[366203843,1750117834403,-490.0,0.00016242,2]
[366203844,1750117834412,-465.59,0.00016242,2]
[366203845,1750117834421,-490.0,0.00016242,2]
[366203846,1750117834430,-166.38,0.00016242,2]
[366203847,1750117834439,-205.40669974,0.00016242,2]
[366203848,1750117834451,-511.22,0.00016242,2]
[366203849,1750117834460,-490.0,0.00016242,2]
[366203850,1750117834469,-490.0,0.00016242,2]
[366203851,1750117834479,-490.0,0.00016242,2]
[366203852,1750117834488,-566.76,0.00016242,2]
[366203853,1750117834498,-490.0,0.00016242,2]
[366203854,1750117834507,-490.0,0.00016242,2]
[366203855,1750117834521,-238.92,0.00016242,2]
[366203856,1750117834530,-490.0,0.00016242,2]
[366203857,1750117834540,-490.0,0.00016242,2]
[366203858,1750117834550,-490.0,0.00016242,2]
[366203859,1750117834559,-490.0,0.00016242,2]
[366203860,1750117834568,-490.0,0.00016242,2]
[366203861,1750117834578,-490.0,0.00016242,2]
[366203862,1750117834588,-490.0,0.00016242,2]
[366203863,1750117834599,-490.0,0.00016242,2]
[366203864,1750117834609,-490.0,0.00016242,2]
[366203865,1750117834619,-490.0,0.00016242,2]
[366203866,1750117834628,-490.0,0.00016242,2]
[366203867,1750117834638,-490.0,0.00016242,2]
[366203868,1750117834648,-490.0,0.00016242,2]
[366203869,1750117834657,-525.58,0.00016242,2]
[366203870,1750117834668,-490.0,0.00016242,2]
[366203871,1750117834677,-206.34,0.00016242,2]
[366203872,1750117834686,-495.60981121,0.00016242,2]
[366203873,1750117834695,-666.52062827,0.00016245,2]
[366203874,1750117834705,-193.09867834,0.00016261,2]
[366203875,1750117834715,-666.52062827,0.00016279,2]
[366203876,1750117834725,-469.42,0.00016288,2]
[366203877,1750117834735,-469.42,0.00016289,2]
[366203878,1750117834744,-469.42,0.00016289,2]
[366203879,1750117834754,-377.81411807,0.0001629,2]
[366203880,1750117834764,-3755.20351572,0.0001629,2]
[366203881,1750117834775,-451.25530619,0.0001629,2]
[366203882,1750117834785,-193.28941173,0.0001629,2]
[366203883,1750117834795,-153.32867398,0.0001629,2]
[366203884,1750117834805,-521.37,0.00016298,2]
[366203885,1750117834815,-490.0,0.00016298,2]
[366203886,1750117834825,-490.0,0.00016298,2]
[366203887,1750117834835,-490.0,0.00016298,2]
[366203888,1750117834848,-490.0,0.00016298,2]
[366203889,1750117834859,-490.0,0.00016298,2]
[366203890,1750117834869,-490.0,0.00016298,2]
[366203891,1750117834879,-490.0,0.00016298,2]
[366203892,1750117834889,-250.0,0.00016298,2]
[366203893,1750117834899,-490.0,0.00016298,2]
[366203894,1750117834908,-621.56380457,0.00016298,2]
[366203895,1750117834919,-192.62,0.00016298,2]
[366203896,1750117834930,-490.0,0.00016298,2]
[366203897,1750117834940,-490.0,0.00016298,2]
[366203898,1750117834951,-232.11,0.00016298,2]
[366203899,1750117834961,-490.0,0.00016298,2]
[366203900,1750117834972,-490.0,0.00016298,2]
[366203901,1750117834983,-490.0,0.00016298,2]
[366203902,1750117834993,-490.0,0.00016298,2]
[366203903,1750117835002,-490.0,0.00016298,2]
[366203904,1750117835012,-495.07,0.00016298,2]
[366203905,1750117835022,-490.0,0.00016298,2]
[366203906,1750117835031,-490.0,0.00016298,2]
[366203907,1750117835042,-500.0,0.00016298,2]
[366203908,1750117835052,-490.0,0.00016298,2]
[366203909,1750117835061,-495.52,0.00016298,2]
[366203910,1750117835071,-1572.8,0.00016298,2]
[366203911,1750117835081,-896.65,0.00016298,2]
[366203912,1750117835092,-703.7,0.00016298,2]
[366203913,1750117835104,-490.0,0.00016298,2]
[366203914,1750117835114,-843.95,0.00016298,2]
[366203915,1750117835123,-490.0,0.00016298,2]
[366203916,1750117835134,-490.0,0.00016298,2]
[366203917,1750117835145,-623.87,0.00016298,2]
[366203918,1750117835154,-490.0,0.00016298,2]
[366203919,1750117835164,-738.51,0.00016298,2]
[366203920,1750117835174,-578.57,0.00016298,2]
[366203921,1750117835184,-490.0,0.00016298,2]
[366203922,1750117835194,-490.0,0.00016298,2]
[366203923,1750117835203,-508.51,0.00016298,2]
[366203924,1750117835213,-490.0,0.00016298,2]
[366203925,1750117835223,-986.33,0.00016298,2]
[366203926,1750117835233,-490.0,0.00016298,2]
[366203927,1750117835243,-490.0,0.00016298,2]
[366203928,1750117835252,-490.0,0.00016298,2]
[366203929,1750117835262,-591.12,0.00016298,2]
[366203930,1750117835271,-490.0,0.00016298,2]
[366203931,1750117835281,-490.1164823,0.00016298,2]
[366203932,1750117835291,-749.46,0.00016298,2]
[366203933,1750117835303,-451.78,0.00016298,2]
[366203934,1750117835314,-1138.86,0.00016298,2]
[366203935,1750117835324,-610.82579108,0.00016298,2]
[366203936,1750117835334,-540.84,0.00016298,2]
[366203937,1750117835347,-490.0,0.00016298,2]
[366203938,1750117835357,-490.0,0.00016298,2]
[366203939,1750117835367,-187.76,0.00016298,2]
[366203940,1750117835377,-490.0,0.00016298,2]
[366203941,1750117835388,-357.71202536,0.00016298,2]
[366203942,1750117835398,-490.0,0.00016298,2]
[366203943,1750117835408,-490.0,0.00016298,2]
[366203944,1750117835419,-490.0,0.00016298,2]
[366203945,1750117835429,-490.0,0.00016298,2]
[366203946,1750117835439,-490.0,0.00016298,2]
[366203947,1750117835454,-224.51,0.00016298,2]
[366203948,1750117835464,-614.58,0.00016298,2]
[366203949,1750117835475,-490.0,0.00016298,2]
[366203950,1750117835485,-490.0,0.00016298,2]
[366203951,1750117835495,-490.0,0.00016298,2]
[366203952,1750117835505,-490.0,0.00016298,2]
[366203953,1750117835515,-490.0,0.00016298,2]
[366203954,1750117835526,-490.0,0.00016298,2]
[366203955,1750117835538,-737.84,0.00016298,2]
[366203956,1750117835549,-581.69,0.00016298,2]
[366203957,1750117835559,-490.0,0.00016298,2]
[366203958,1750117835570,-490.0,0.00016298,2]
[366203959,1750117835580,-490.0,0.00016298,2]
[366203960,1750117835590,-490.0,0.00016298,2]
[366203961,1750117835603,-490.0,0.00016298,2]
[366203962,1750117835614,-490.0,0.00016298,2]
[366203963,1750117835624,-490.0,0.00016298,2]
[366203964,1750117835635,-490.0,0.00016298,2]
[366203965,1750117835645,-768.79,0.00016298,2]
[366203966,1750117835656,-490.0,0.00016298,2]
[366203967,1750117835666,-1268.46,0.00016298,2]
[366203968,1750117835677,-490.0,0.00016298,2]
[366203969,1750117835687,-490.0,0.00016298,2]
[366203970,1750117835697,-2403.06,0.00016298,2]
[366203971,1750117835707,-490.0,0.00016298,2]
[366203972,1750117835717,-335.67089435,0.00016298,2]
[366203973,1750117835727,-490.0,0.00016298,2]
[366203974,1750117835738,-490.0,0.00016299,2]
[366203975,1750117835749,-383.68625239,0.00016299,2]
[366203976,1750117835759,-618.09,0.00016299,2]
[366203977,1750117835770,-490.0,0.00016299,2]
[366203978,1750117835780,-490.0,0.00016299,2]
[366203979,1750117835790,-211.93,0.00016299,2]
[366203980,1750117835801,-490.0,0.00016299,2]
[366203981,1750117835812,-490.0,0.00016299,2]
[366203982,1750117835822,-490.0,0.00016299,2]
[366203983,1750117835833,-490.0,0.00016299,2]
[366203984,1750117835844,-490.0,0.00016299,2]
[366203985,1750117835856,-490.0,0.00016299,2]
[366203986,1750117835866,-369.96,0.00016299,2]
[366203987,1750117835878,-490.0,0.00016299,2]
[366203988,1750117835889,-490.0,0.00016299,2]
[366203989,1750117835900,-490.0,0.00016299,2]
[366203990,1750117835912,-505.69,0.00016299,2]
[366203991,1750117835923,-490.0,0.00016299,2]
[366203992,1750117835934,-267.91,0.00016299,2]
[366203993,1750117835945,-491.63,0.00016299,2]
[366203994,1750117835956,-490.0,0.00016299,2]
[366203995,1750117835967,-561.65,0.00016299,2]
[366203996,1750117835978,-490.0,0.00016299,2]
[366203997,1750117835989,-394.76638582,0.00016299,2]
[366203998,1750117836000,-490.0,0.00016299,2]
[366203999,1750117836011,-541.42133773,0.00016299,2]
[366204000,1750117836022,-490.0,0.00016299,2]
[366204001,1750117836034,-531.66,0.00016299,2]
[366204002,1750117836045,-506.04,0.00016299,2]
[366204003,1750117836056,-490.0,0.00016299,2]
[366204004,1750117836067,-490.0,0.00016299,2]
[366204005,1750117836078,-490.0,0.00016299,2]
[366204006,1750117836090,-490.0,0.00016299,2]
[366204007,1750117836103,-490.0,0.00016299,2]
[366204008,1750117836114,-474.89063848,0.00016299,2]
[366204009,1750117836125,-490.0,0.00016299,2]
[366204010,1750117836137,-490.0,0.00016299,2]
[366204011,1750117836148,-490.0,0.00016299,2]
[366204012,1750117836159,-490.0,0.00016299,2]
[366204013,1750117836171,-490.0,0.00016299,2]
[366204014,1750117836182,-490.0,0.00016299,2]
[366204015,1750117836193,-490.0,0.00016299,2]
[366204016,1750117836205,-490.0,0.00016299,2]
[366204017,1750117836216,-490.0,0.00016299,2]
[366204018,1750117836227,-490.0,0.00016299,2]
[366204019,1750117836238,-490.0,0.00016299,2]
[366204020,1750117836251,-490.0,0.00016299,2]
[366204021,1750117836262,-490.0,0.00016299,2]
[366204022,1750117836273,-490.0,0.00016299,2]
[366204023,1750117836285,-490.0,0.00016299,2]
[366204024,1750117836297,-490.0,0.00016299,2]
[366204025,1750117836309,-490.0,0.00016299,2]
[366204026,1750117836320,-490.0,0.00016299,2]
[366204027,1750117836332,-490.0,0.00016299,2]
[366204028,1750117836343,-490.0,0.00016299,2]
[366204029,1750117836356,-490.0,0.00016299,2]
[366204030,1750117836367,-490.0,0.00016299,2]
[366204031,1750117836378,-490.0,0.00016299,2]
[366204032,1750117836390,-490.0,0.00016299,2]
[366204033,1750117836402,-490.0,0.00016299,2]
[366204034,1750117836413,-490.0,0.00016299,2]
[366204035,1750117836425,-490.0,0.00016299,2]
[366204036,1750117836437,-490.0,0.00016299,2]
[366204037,1750117836452,-490.0,0.00016299,2]
[366204038,1750117836463,-490.0,0.00016299,2]
[366204039,1750117836474,-490.0,0.00016299,2]
[366204040,1750117836485,-500.0,0.00016299,2]
[366204041,1750117836496,-297.43,0.00016299,2]
[366204042,1750117836507,-597.87707557,0.00016299,2]
[366204043,1750117836519,-490.0,0.00016299,2]
[366204044,1750117836531,-490.0,0.00016299,2]
[366204045,1750117836543,-490.0,0.00016299,2]
[366204046,1750117836554,-490.0,0.00016299,2]
[366204047,1750117836566,-490.0,0.00016299,2]
[366204048,1750117836578,-490.0,0.00016299,2]
[366204049,1750117836589,-490.0,0.00016299,2]
[366204050,1750117836601,-1244.15,0.00016299,2]
[366204051,1750117836613,-490.0,0.00016299,2]
[366204052,1750117836624,-490.0,0.00016299,2]
[366204053,1750117836636,-490.0,0.00016299,2]
[366204054,1750117836648,-447.53,0.00016299,2]
[366204055,1750117836660,-561.72,0.00016299,2]
[366204056,1750117836672,-490.0,0.00016299,2]
[366204057,1750117836684,-490.0,0.00016299,2]
[366204058,1750117836702,-663.09,0.00016299,2]
[366204059,1750117836717,-827.82,0.00016299,2]
[366204060,1750117836730,-490.0,0.00016299,2]
[366204061,1750117836743,-1064.97,0.00016299,2]
[366204062,1750117836755,-490.0,0.00016299,2]
[366204063,1750117836766,-490.0,0.00016299,2]
[366204064,1750117836778,-490.0,0.00016299,2]
[366204065,1750117836788,-490.0,0.00016299,2]
[366204066,1750117836799,-546.78,0.00016299,2]
[366204067,1750117836812,-490.0,0.00016299,2]
[366204068,1750117836825,-1401.49,0.00016299,2]
[366204069,1750117836838,-490.0,0.00016299,2]
[366204070,1750117836852,-491.07357929,0.00016299,2]
[366204071,1750117836864,-490.0,0.00016299,2]
[366204072,1750117836878,-1302.98,0.00016299,2]
[366204073,1750117836890,-576.58,0.00016299,2]
[366204074,1750117836903,-490.0,0.00016299,2]
[366204075,1750117836916,-490.0,0.00016299,2]
[366204076,1750117836929,-490.0,0.00016299,2]
[366204077,1750117836942,-1440.66,0.00016299,2]
[366204078,1750117836955,-490.0,0.00016299,2]
[366204079,1750117836966,-1000.0,0.00016299,2]
[366204080,1750117836979,-490.0,0.00016299,2]
[366204081,1750117836990,-490.0,0.00016299,2]
[366204082,1750117837002,-490.0,0.00016299,2]
[366204083,1750117837014,-1066.94,0.00016299,2]
[366204084,1750117837025,-490.0,0.00016299,2]
[366204085,1750117837038,-490.0,0.00016299,2]
[366204086,1750117837052,-490.0,0.00016299,2]
[366204087,1750117837065,-490.0,0.00016299,2]
[366204088,1750117837077,-490.0,0.00016299,2]
[366204089,1750117837090,-759.83,0.00016299,2]
[366204090,1750117837105,-490.0,0.00016299,2]
[366204091,1750117837119,-490.0,0.00016299,2]
[366204092,1750117837131,-2783.24,0.00016299,2]
[366204093,1750117837144,-490.0,0.00016299,2]
[366204094,1750117837157,-1951.05,0.00016299,2]
[366204095,1750117837168,-490.0,0.00016299,2]
[366204096,1750117837181,-490.0,0.00016299,2]
[366204097,1750117837193,-490.0,0.00016299,2]
[366204098,1750117837205,-490.0,0.00016299,2]
[366204099,1750117837216,-490.0,0.00016299,2]
[366204100,1750117837228,-490.0,0.00016299,2]
[366204101,1750117837242,-490.0,0.00016299,2]
[366204102,1750117837254,-490.0,0.00016299,2]
[366204103,1750117837265,-490.0,0.00016299,2]
[366204104,1750117837277,-490.0,0.00016299,2]
[366204105,1750117837290,-511.63,0.00016299,2]
[366204106,1750117837302,-490.0,0.00016299,2]
[366204107,1750117837314,-490.0,0.00016299,2]
[366204108,1750117837326,-490.0,0.00016299,2]
[366204109,1750117837337,-490.0,0.00016299,2]
[366204110,1750117837351,-907.26,0.00016299,2]
[366204111,1750117837364,-490.0,0.00016299,2]
[366204112,1750117837375,-576.67775027,0.00016299,2]
[366204113,1750117837388,-490.0,0.00016299,2]
[366204114,1750117837401,-490.0,0.00016299,2]
[366204115,1750117837414,-490.0,0.00016299,2]
[366204116,1750117837425,-490.0,0.00016299,2]
[366204117,1750117837437,-3162.55,0.00016299,2]
[366204118,1750117837451,-503.42473514,0.00016299,2]
[366204119,1750117837463,-564.31,0.00016299,2]
[366204120,1750117837474,-490.0,0.00016299,2]
[366204121,1750117837486,-490.0,0.00016299,2]
[366204122,1750117837497,-490.0,0.00016299,2]
[366204123,1750117837508,-490.0,0.00016299,2]
[366204124,1750117837520,-490.0,0.00016299,2]
[366204125,1750117837532,-490.0,0.00016299,2]
[366204126,1750117837544,-490.0,0.00016299,2]
[366204127,1750117837558,-490.0,0.00016299,2]
[366204128,1750117837572,-490.0,0.00016299,2]
[366204129,1750117837583,-541.75,0.00016299,2]
[366204130,1750117837594,-490.0,0.00016299,2]
[366204131,1750117837606,-490.0,0.00016299,2]